{"text_format":"1","workbook":"xlsx","n_sheets":2,"sheets":["Pasiūlymas","Subtiekėjai"],"not_rendered":{"charts":0,"images":0,"macros":1,"external_links":0,"defined_names":1,"comments":0,"pivot_tables":0},"unopened":[],"bounds":{"document_bytes":16777216,"sheet_cells":100000,"rows_first":2000,"rows_last":500,"rows_between":2000,"halvings":0,"cell_chars":16384,"cell_head_chars":4096},"cells_cut":0,"cells_raw":0,"read":"whole","date_system":"1900"}

{"sheet":"Pasiūlymas","index":0,"n_rows":672,"n_cols":13,"rows_kept":672,"cut":false,"hidden":false,"merged":[[12,0,12,1],[13,0,13,1],[14,0,14,1],[9,0,9,1],[10,0,10,1],[11,0,11,1],[18,0,18,1],[19,0,19,1],[19,2,19,4],[22,0,22,5],[15,0,15,1],[16,0,16,1],[17,0,17,1],[28,1,28,7],[39,1,39,7],[48,1,48,7],[98,1,98,7],[110,1,110,7],[126,1,126,7],[143,1,143,7],[155,1,155,7],[171,1,171,7],[182,1,182,7],[200,1,200,7],[207,1,207,7],[213,1,213,7],[318,1,318,7],[329,1,329,7],[338,1,338,7],[345,1,345,7],[356,1,356,7],[365,1,365,7],[374,1,374,7],[381,1,381,7],[391,1,391,7],[402,1,402,7],[412,1,412,7],[419,1,419,7],[431,1,431,7],[440,1,440,7],[449,1,449,7],[460,1,460,7],[473,1,473,7],[485,1,485,7],[494,1,494,7],[504,1,504,7],[514,1,514,7],[523,1,523,7],[532,1,532,7],[540,1,540,7],[550,1,550,7],[561,1,561,7],[568,1,568,7],[575,1,575,7],[587,1,587,7],[595,1,595,7],[612,1,612,7],[621,1,621,7],[630,1,630,7],[637,1,637,7],[646,1,646,7],[656,1,656,7],[664,1,664,7]]}
["Perkančioji organizacija, kuriai teikiamas pasiūlymas:",null,"VŠĮ Kauno klinikinė ligoninė"]
[]
[null,"PASIŪLYMAS"]
[null,"Vienkartinės medicininės priemonės"]
[]
["Data:","2018-04-12"]
["Nr.:",43202]
["Vieta:","Vilnius"]
[]
["Tiekėjo pavadinimas /Jeigu dalyvauja ūkio subjektų grupė, surašomi visi dalyvių pavadinimai/",null,"UAB Ilsanta"]
["Įmonės kodas /Jeigu dalyvauja ūkio subjektų grupė, surašomi visi dalyvių kodai/",null,110498671]
["PVM mokėtojo kodas /Jeigu dalyvauja ūkio subjektų grupė, surašomi visi dalyvių kodai/",null,"LT104986716"]
["Banko pavadinimas, banko kodas, sąskaitos Nr.",null,"Luminor"]
["Tiekėjo adresas /Jeigu dalyvauja ūkio subjektų grupė, surašomi visi dalyvių adresai/",null,"Goštauto g/40A"]
["Telefono numeris",null,868794866]
["Fakso numeris",null,852691611]
["El. pašto adresas",null,"sandra@ilsanta.lt"]
["Asmens, pasirašiusio pasiūlymą saugiu elektroniniu parašu, vardas, pavardė, pareigos ",null,"Sandra Čaikė"]
["Asmens, įgalioto pasirašyti sutartį, vardas, pavardė, pareigos",null,"Tomas Godelis"]
[]
[]
[]
["1. Šiuo pasiūlymu pažymime, kad sutinkame su visomis pirkimo sąlygomis, nustatytomis:\n1) pirkimo skelbime, paskelbtame Viešųjų pirkimų įstatymo nustatyta tvarka;\n2) pirkimo sąlygose ir kituose pirkimo dokumentuose (jų paaiškinimuose, papildymuose).\n"]
[]
["Siūlomas pirkimo objektas visiškai atitinka pirkimo sąlygose nustatytus reikalavimus ir jo kaina yra:"]
[]
[]
["Nr.","Pavadinimas","Kiekis","Mato vienetas","Kaina be PVM","Suma be PVM","Siūlomos prekės pavadinimas ir/ar gamintojas","Siūlomos prekės parametrai",null,null,"","",""]
["51.","Intubacinių vamzdelių pravedėjas sunkioms intubacijoms"]
["51.1.","Intubacinių vamzdelių pravedėjas sunkioms intubacijoms",4,"Vnt.",null,null,null,"","",""]
["51.1.1.","Tinka 6,5-8,5mm dydžio intubaciniams vamzdeliams"]
["51.1.2.","Daugkartinis"]
["51.1.3.","Su vamzdelį stabilizuojančiu kamščiu",null,null,null,null,null,null,null,""]
["51.1.4.","Lanksčiu galu, kuris yra reguliojamas rankenos pagalba",null,null,null,null,null,null,null,null,null,""]
["51.1.5.","Pagamintas iš nerūdyjančio plieno",null,null,null,null,null,null,null,null,null,""]
[null,"","","","Suma be PVM",null,"","","","","",""]
[null,"","","","PVM suma",null,"","","","","",""]
[null,"","","","Suma su PVM",null,"","","","","",""]
[]
["52.","Intubaciniai stiletai"]
["52.1.","Intubacinio vamzdelio stiletas 2,5-4,5mm",30,"Vnt.",null,null,null,"","",""]
["52.2.","Intubacinio vamzdelio stiletas 5-8mm",100,"Vnt.",null,null,null,"","",""]
["52.3.","Intubacinio vamzdelio stiletas 8,5-10mm",600,"Vnt.",null,null,null,"","","",null,""]
["52.4.","Intubacinio vamzdelio stiletas 2,1-2,3mm (vaikiškas)",30,"Vnt.",null,null,null,"","","",null,""]
[null,"","","","Suma be PVM",null,"","","","","",""]
[null,"","","","PVM suma",null,"","","","","",""]
[null,"","","","Suma su PVM",null,"","","","","",""]
[null,null,null,null,null,null,null,null,null,"","",""]
["53.","Orofaringiniai vamzdeliai",null,null,null,null,null,null,null,"","",""]
["53.1.","Orofaringinis vamzdelis 000",20,"Vnt.",null,null,null,"","",""]
["53.1.1.","Ilgis 30mm +/-1mm"]
["53.1.2.","Vienkartiniai, kliniškai švarūs, skairūs"]
["53.1.3.","Gaminio sudėtyje nėra latekso"]
["53.1.4.","Spalvinis numerių kodavimas pagal dydžius"]
["53.2.","Orofaringinis vamzdelis 00",20,"Vnt.",null,null,null,"","",""]
["53.2.1.","Ilgis 40mm +/-1mm"]
["53.2.2.","Vienkartiniai, kliniškai švarūs, skairūs"]
["53.2.3.","Gaminio sudėtyje nėra latekso"]
["53.2.4.","Spalvinis numerių kodavimas pagal dydžius"]
["53.3.","Orofaringinis vamzdelis 0",20,"Vnt.",null,null,null,"","",""]
["53.3.1.","Ilgis 50mm +/-1mm"]
["53.3.2.","Vienkartiniai, kliniškai švarūs, skairūs"]
["53.3.3.","Gaminio sudėtyje nėra latekso"]
["53.3.4.","Spalvinis numerių kodavimas pagal dydžius"]
["53.4.","Orofaringinis vamzdelis 1",20,"Vnt.",null,null,null,"","",""]
["53.4.1.","Ilgis 60mm +/-1mm"]
["53.4.2.","Vienkartiniai, kliniškai švarūs, skairūs"]
["53.4.3.","Gaminio sudėtyje nėra latekso"]
["53.4.4.","Spalvinis numerių kodavimas pagal dydžius"]
["53.5.","Orofaringinis vamzdelis 2",60,"Vnt.",null,null,null,"","",""]
["53.5.1.","Ilgis 70mm +/-1mm"]
["53.5.2.","Vienkartiniai, kliniškai švarūs, skairūs"]
["53.5.3.","Gaminio sudėtyje nėra latekso"]
["53.5.4.","Spalvinis numerių kodavimas pagal dydžius"]
["53.6.","Orofaringinis vamzdelis 3",70,"Vnt.",null,null,null,"","",""]
["53.6.1.","Ilgis 80mm +/-1mm"]
["53.6.2.","Vienkartiniai, kliniškai švarūs, skairūs"]
["53.6.3.","Gaminio sudėtyje nėra latekso"]
["53.6.4.","Spalvinis numerių kodavimas pagal dydžius"]
["53.7.","Orofaringinis vamzdelis 4",900,"Vnt.",null,null,null,"","",""]
["53.7.1.","Ilgis 90mm +/-1mm"]
["53.7.2.","Vienkartiniai, kliniškai švarūs, skairūs"]
["53.7.3.","Gaminio sudėtyje nėra latekso"]
["53.7.4.","Spalvinis numerių kodavimas pagal dydžius"]
["53.8.","Orofaringinis vamzdelis 5",700,"Vnt.",null,null,null,"","",""]
["53.8.1.","Ilgis 100mm +/-1mm"]
["53.8.2.","Vienkartiniai, kliniškai švarūs, skairūs"]
["53.8.3.","Gaminio sudėtyje nėra latekso"]
["53.8.4.","Spalvinis numerių kodavimas pagal dydžius"]
["53.9.","Orofaringinis vamzdelis 6",40,"Vnt.",null,null,null,"","",""]
["53.9.1.","Ilgis 110-120mm"]
["53.9.2.","Vienkartiniai, kliniškai švarūs, skairūs"]
["53.9.3.","Gaminio sudėtyje nėra latekso"]
["53.9.4.","Spalvinis numerių kodavimas pagal dydžius"]
[null,"","","","Suma be PVM",null,"","","","","",""]
[null,"","","","PVM suma",null,"","","","","",""]
[null,"","","","Suma su PVM",null,"","","","","",""]
[]
["54.","Prailginimo linijos"]
["54.1.","Prailginimo linija 100cm +/- 5cm",100,"Vnt.",null,null,null,"","",""]
["54.2.","Prailginimo linija 150cm +/- 5cm",11000,"Vnt.",null,null,null,"","",""]
["54.3.","Prailginimo linija 150cm +/- 5cm",750,"Vnt.",null,null,null,"","",""]
["54.3.1.","Jungianti prie lašelinių sistemų 2 diametrų (plona - infuzinei sistemai, storesnė - infuzinei pompai)"]
["54.4.","Prailginimo linija 200cm +/- 5cm",30,"Vnt.",null,null,null,"","",""]
["54.5.","Prailginimo linija 150cm +/- 5cm",30,"Vnt.",null,null,null,"","",""]
["54.5.1.","Juoda"]
[null,"","","","Suma be PVM",null,"","","","","",""]
[null,"","","","PVM suma",null,"","","","","",""]
[null,"","","","Suma su PVM",null,"","","","","",""]
[]
["55.","Prailginimo linija 10cm ilgio su 3 beadatiniais konektoriais ir 3 skirtingų spalvų spaustukais"]
["55.1.","Prailginimo linija 10cm ilgio su 3 beadatiniais konektoriais ir 3 skirtingų spalvų spaustukais",170,"Vnt.",null,null,null,"","",""]
["55.1.1.","Prailginimo linija su skaidriu konektoriumi, tinkančiu leisti vaistams, kraujui ir kraujo produktams, biologiniams skysčiams ir lipidams, chemoterepiniams vaistams"]
["55.1.2.","Nėra latekso, metalinių dalių, vožtuvo"]
["55.1.3.","Lygus kontaktinis valomasisi paviršius"]
["55.1.4.","Konstrukcija - pasiskirsinti membrana su vidine kaniule"]
["55.1.5.","Gali būti nepertraukiamai naudojamas iki 7 parų"]
["55.1.6.","Neutralaus poslinkio - 0,004ml"]
["55.1.7.","Tėkmė ≥ 350 ml/min"]
["55.1.8.","Svoris ≤ 1 g"]
["55.1.9.","Liekamasis tūris ≤ 0,05 ml"]
["55.1.10.","Prailginimo linijos storis 2,5mm"]
[null,"","","","Suma be PVM",null,"","","","","",""]
[null,"","","","PVM suma",null,"","","","","",""]
[null,"","","","Suma su PVM",null,"","","","","",""]
[]
["56.","Monitoringo linija CO2 matavimui"]
["56.1.","Monitoringo linija",100,"Vnt.",null,null,null,"","",""]
["56.1.1.","Vienkartinė, kliniškai švari"]
["56.1.2.","Vamzdelis skaidrus, minkštas, lankstus"]
["56.1.3.","Suspaudus vamzdelį neturi likti likutinės deformacijos žymių"]
["56.1.4.","Abiem užsukamonis vyriškos formos Luer jungtimis"]
["56.1.5.","Ilgis 3-4,5m"]
["56.2.","Monitoringo linija",40,"Vnt.",null,null,null,"","",""]
["56.2.1.","Vienkartinė, kliniškai švari"]
["56.2.2.","Vamzdelis skaidrus, minkštas, lankstus"]
["56.2.3.","Suspaudus vamzdelį neturi likti likutinės deformacijos žymių"]
["56.2.4.","Viena vyriškos formos Luer jungtimi, kita moteriškos formos jungtimi"]
["56.2.5.","Ilgis ne mažiau 3m"]
[null,"","","","Suma be PVM",null,"","","","","",""]
[null,"","","","PVM suma",null,"","","","","",""]
[null,"","","","Suma su PVM",null,"","","","","",""]
[]
["57.","Lašelinės"]
["57.1.","Vienkartinė infuzinė lašelinė",300000,"Vnt.",null,null,null,"","",""]
["57.1.1.","Su užmaunama adata"]
["57.2.","Vienkartinė transfuzinė lašelinė",10000,"Vnt.",null,null,null,"","",""]
["57.2.1.","Su užmaunama adata"]
["57.3.","Vienkartinė infuzinė lašelinė",50,"Vnt.",null,null,null,"","",""]
["57.3.1.","Su  adata"]
["57.3.2.","Tamsi"]
[null,"","","","Suma be PVM",null,"","","","","",""]
[null,"","","","PVM suma",null,"","","","","",""]
[null,"","","","Suma su PVM",null,"","","","","",""]
[]
["58.","4 kranelių blokas su 5 beadatiniais konektoriais"]
["58.1.","4 kranelių blokas su 5 beadatiniais konektoriais",50,"Vnt.",null,null,null,"","",""]
["58.1.1.","Neišardomas kranelių blokas su prisukamu laikikliu prie lašelinė stovo"]
["58.1.2.","Konektoriai, tinkantys leisti vaistams, kraujui ir kraujo produktams, biologiniams skysčiams ir lipidams, chemoterepiniams vaistams"]
["58.1.3.","Nėra latekso, metalinių dalių, vožtuvo"]
["58.1.4.","Lygus kontaktinis valomasisi paviršius"]
["58.1.5.","Konstrukcija - pasiskirianti membrana su vidine kaniule"]
["58.1.6.","Gali būti nepertraukiamai naudojamas iki 7 parų"]
["58.1.7.","Neutralaus poslinkio - 0,004ml"]
["58.1.8.","Tėkmė ≥ 350 ml/min"]
["58.1.9.","Svoris ≤ 1 g"]
["58.1.10.","Liekamasis tūris ≤ 0,05 ml"]
[null,"","","","Suma be PVM",null,"","","","","",""]
[null,"","","","PVM suma",null,"","","","","",""]
[null,"","","","Suma su PVM",null,"","","","","",""]
[]
["59.","Trigubas beadatinis konektorius su prailginimo linija"]
["59.1.","Trigubas beadatinis konektorius su prailginimo linija",50,"Vnt.",null,null,null,"","",""]
["59.1.1.","Tinkantis kraujui ir kraujo produktams, biologiniams skysčiams ir lipidams, suderinamas su įprastiniais chemoterapiniais vaistais ir tirpikliais"]
["59.1.2.","Sudėtyje nėra latekso, metalinių detalių"]
["59.1.3.","Konektorius neutralaus slėgio +/- 0,01ml"]
["59.1.4.","Gali būti nepertraukiamai naudojams iki 3 parų"]
["59.1.5.","Maksimalus prisijungimo limitas ne mažiau 140 kartų"]
[null,"","","","Suma be PVM",null,"","","","","",""]
[null,"","","","PVM suma",null,"","","","","",""]
[null,"","","","Suma su PVM",null,"","","","","",""]
[]
["60.","Autogeninė transfuzijos sistema"]
["60.1.","Autogeninė transfuzijos sistema",50,"Vnt.",null,null,null,"","",""]
["60.1.1.","Sterili sistema į kurios rinkinį įeina:"]
["60.1.2.","2 poliuretano medžiagos atraumatiniai CH18 drenai"]
["60.1.3.","Y jungtis "]
["60.1.4.","2 troakarai"]
["60.1.5.","350ml žemo vakuumo 100mm/Hg (+/-5%) \"dumplės\" su dviem išleidimo vožtuvais"]
["60.1.6.","Du 600ml talpos maišeliai autotransfuzijai su integruotais 200μm filtrais, turiniui neleidžiančiais grįžti atgal vožtuvais ir etiketėmis procedūros informacijai įrašyti"]
["60.1.7.","Visos sistemos dalys turi būti supakuotos vienoje pakuotėje su sterilumo indikatoriumi"]
["60.1.8.","Sistemos naudojimo laikas - iki 12 valandų (pateikti tai patvirtinančius dokumentus)"]
["60.1.9.","Kiekvienoje pakuotėje turi būti išsami naudojimosi instrukcija lietuvių kalba.\nKiekvienoje pakuotėje turi būti išsami naudojimosi instrukcija lietuvių kalba.\nKiekvienoje pakuotėje turi būti išsami naudojimosi instrukcija lietuvių kalba.\nKiekvienoje pakuotėje turi būti išsami naudojimosi instrukcija lietuvių kalba.\nKiekvienoje pakuotėje turi būti išsami naudojimo instrukcija lietuvių kalba"]
["60.2.","Transfuzijos filtras",50,"Vnt.",null,null,null,"","",""]
["60.2.1.","40μm"]
["60.2.2.","Sterilus, supakuotas indvidualioje pakuotėje"]
[null,"","","","Suma be PVM",null,"","","","","",""]
[null,"","","","PVM suma",null,"","","","","",""]
[null,"","","","Suma su PVM",null,"","","","","",""]
[]
["61.","Lašinės sistemos linijos"]
["61.1.","Lašinės sistemos linijos",600,"Vnt.",null,null,null,"","",""]
["61.1.1.","Skirtos darbui naudojant Volumed μVP7000 chroma tūrinę pompą"]
[null,"","","","Suma be PVM",null,"","","","","",""]
[null,"","","","PVM suma",null,"","","","","",""]
[null,"","","","Suma su PVM",null,"","","","","",""]
[]
["62.","Lašinės sistemos "]
["62.1.","Lašinės sistemos  tūrinei infuzinei pompai DF-12M",300,"Vnt.",null,null,null,"","",""]
[null,"","","","Suma be PVM",null,"","","","","",""]
[null,"","","","PVM suma",null,"","","","","",""]
[null,"","","","Suma su PVM",null,"","","","","",""]
[]
["63.","Armuoti intubaciniai vamzdeliai"]
["63.1.","Armuotas intubacinis vamzdelis Nr.3,5 LOR operacijoms",60,"Vnt.",null,null,null,"","",""]
["63.1.1.","Sterilūs, vienkartiniai, supakuoti po 1vnt."]
["63.1.2.","Gaminio sudėtyje nėra latekso"]
["63.1.3.","Į armuoto endotrachėjinio vamzdelio sieneles spiralės forma yra integruotas metalinis laidas"]
["63.1.4.","Vamzdelio distalinėje dalyje, dešinėje yra angelė. Distalinės dalies bei šoninės angelės kraštai yra švelnūs/glotnūs (užapvalinti), netraumuojantys gleivinės"]
["63.1.5.","Proksimaliniame gale yra jungtis; švirkšto prijungimo juosta yra  Luer - Lock tipo; yra užpildymo balionėlis ir kontrolinė manžetė"]
["63.1.6.","Vamzdelio mova (balionas) yra apvalios, pailgos (\"cilindro\") formos, didelio tūrio, žemo spaudimo ir mažo diametro"]
["63.1.7.","Vamzdelio mova pagaminta iš minkštos aukštos kokybės gleivinės netraumuojančios medžiagos"]
["63.1.8.","Vamzdeliai yra pagaminti iš permatomos medžiagos (PVC), elastingi, užrašai ant vamzdelio neišsitrinantys ir ryškūs"]
["63.1.9.","Vartotojui reikalinga informacija yra matomoje vamzdelio dalyje. Sterili pakuotė, ant kurios pateikta informacija apie intubacinį vamzdelį (užrašytas gamintojas, vamzdelio dydis, prekės kodas, galiojimo laikas ir t.t.). kiekvienoje dėžutėje yra naudojimo instrukcija lietuvių kalba. "]
["63.2.","Armuotas intubacinis vamzdelis Nr.4 LOR operacijoms",60,"Vnt.",null,null,null,"","",""]
["63.2.1.","Sterilūs, vienkartiniai, supakuoti po 1vnt."]
["63.2.2.","Gaminio sudėtyje nėra latekso"]
["63.2.3.","Į armuoto endotrachėjinio vamzdelio sieneles spiralės forma yra integruotas metalinis laidas"]
["63.2.4.","Vamzdelio distalinėje dalyje, dešinėje yra angelė. Distalinės dalies bei šoninės angelės kraštai yra švelnūs/glotnūs (užapvalinti), netraumuojantys gleivinės"]
["63.2.5.","Proksimaliniame gale yra jungtis; švirkšto prijungimo juosta yra  Luer - Lock tipo; yra užpildymo balionėlis ir kontrolinė manžetė"]
["63.2.6.","Vamzdelio mova (balionas) yra apvalios, pailgos (\"cilindro\") formos, didelio tūrio, žemo spaudimo ir mažo diametro"]
["63.2.7.","Vamzdelio mova pagaminta iš minkštos aukštos kokybės gleivinės netraumuojančios medžiagos"]
["63.2.8.","Vamzdeliai yra pagaminti iš permatomos medžiagos (PVC), elastingi, užrašai ant vamzdelio neišsitrinantys ir ryškūs"]
["63.2.9.","Vartotojui reikalinga informacija yra matomoje vamzdelio dalyje. Sterili pakuotė, ant kurios pateikta informacija apie intubacinį vamzdelį (užrašytas gamintojas, vamzdelio dydis, prekės kodas, galiojimo laikas ir t.t.). kiekvienoje dėžutėje yra naudojimo instrukcija lietuvių kalba. "]
["63.3.","Armuotas intubacinis vamzdelis Nr.4,5 LOR operacijoms",60,"Vnt.",null,null,null,"","",""]
["63.3.1.","Sterilūs, vienkartiniai, supakuoti po 1vnt."]
["63.3.2.","Gaminio sudėtyje nėra latekso"]
["63.3.3.","Į armuoto endotrachėjinio vamzdelio sieneles spiralės forma yra integruotas metalinis laidas"]
["63.3.4.","Vamzdelio distalinėje dalyje, dešinėje yra angelė. Distalinės dalies bei šoninės angelės kraštai yra švelnūs/glotnūs (užapvalinti), netraumuojantys gleivinės"]
["63.3.5.","Proksimaliniame gale yra jungtis; švirkšto prijungimo juosta yra  Luer - Lock tipo; yra užpildymo balionėlis ir kontrolinė manžetė"]
["63.3.6.","Vamzdelio mova (balionas) yra apvalios, pailgos (\"cilindro\") formos, didelio tūrio, žemo spaudimo ir mažo diametro"]
["63.3.7.","Vamzdelio mova pagaminta iš minkštos aukštos kokybės gleivinės netraumuojančios medžiagos"]
["63.3.8.","Vamzdeliai yra pagaminti iš permatomos medžiagos (PVC), elastingi, užrašai ant vamzdelio neišsitrinantys ir ryškūs"]
["63.3.9.","Vartotojui reikalinga informacija yra matomoje vamzdelio dalyje. Sterili pakuotė, ant kurios pateikta informacija apie intubacinį vamzdelį (užrašytas gamintojas, vamzdelio dydis, prekės kodas, galiojimo laikas ir t.t.). kiekvienoje dėžutėje yra naudojimo instrukcija lietuvių kalba. "]
["63.4.","Armuotas intubacinis vamzdelis Nr.5 LOR operacijoms",40,"Vnt.",null,null,null,"","",""]
["63.4.1.","Sterilūs, vienkartiniai, supakuoti po 1vnt."]
["63.4.2.","Gaminio sudėtyje nėra latekso"]
["63.4.3.","Į armuoto endotrachėjinio vamzdelio sieneles spiralės forma yra integruotas metalinis laidas"]
["63.4.4.","Vamzdelio distalinėje dalyje, dešinėje yra angelė. Distalinės dalies bei šoninės angelės kraštai yra švelnūs/glotnūs (užapvalinti), netraumuojantys gleivinės"]
["63.4.5.","Proksimaliniame gale yra jungtis; švirkšto prijungimo juosta yra  Luer - Lock tipo; yra užpildymo balionėlis ir kontrolinė manžetė"]
["63.4.6.","Vamzdelio mova (balionas) yra apvalios, pailgos (\"cilindro\") formos, didelio tūrio, žemo spaudimo ir mažo diametro"]
["63.4.7.","Vamzdelio mova pagaminta iš minkštos aukštos kokybės gleivinės netraumuojančios medžiagos"]
["63.4.8.","Vamzdeliai yra pagaminti iš permatomos medžiagos (PVC), elastingi, užrašai ant vamzdelio neišsitrinantys ir ryškūs"]
["63.4.9.","Vartotojui reikalinga informacija yra matomoje vamzdelio dalyje. Sterili pakuotė, ant kurios pateikta informacija apie intubacinį vamzdelį (užrašytas gamintojas, vamzdelio dydis, prekės kodas, galiojimo laikas ir t.t.). kiekvienoje dėžutėje yra naudojimo instrukcija lietuvių kalba. "]
["63.5.","Armuotas intubacinis vamzdelis Nr.5,5 LOR operacijoms",40,"Vnt.",null,null,null,"","",""]
["63.5.1.","Sterilūs, vienkartiniai, supakuoti po 1vnt."]
["63.5.2.","Gaminio sudėtyje nėra latekso"]
["63.5.3.","Į armuoto endotrachėjinio vamzdelio sieneles spiralės forma yra integruotas metalinis laidas"]
["63.5.4.","Vamzdelio distalinėje dalyje, dešinėje yra angelė. Distalinės dalies bei šoninės angelės kraštai yra švelnūs/glotnūs (užapvalinti), netraumuojantys gleivinės"]
["63.5.5.","Proksimaliniame gale yra jungtis; švirkšto prijungimo juosta yra  Luer - Lock tipo; yra užpildymo balionėlis ir kontrolinė manžetė"]
["63.5.6.","Vamzdelio mova (balionas) yra apvalios, pailgos (\"cilindro\") formos, didelio tūrio, žemo spaudimo ir mažo diametro"]
["63.5.7.","Vamzdelio mova pagaminta iš minkštos aukštos kokybės gleivinės netraumuojančios medžiagos"]
["63.5.8.","Vamzdeliai yra pagaminti iš permatomos medžiagos (PVC), elastingi, užrašai ant vamzdelio neišsitrinantys ir ryškūs"]
["63.5.9.","Vartotojui reikalinga informacija yra matomoje vamzdelio dalyje. Sterili pakuotė, ant kurios pateikta informacija apie intubacinį vamzdelį (užrašytas gamintojas, vamzdelio dydis, prekės kodas, galiojimo laikas ir t.t.). kiekvienoje dėžutėje yra naudojimo instrukcija lietuvių kalba. "]
["63.6.","Armuotas intubacinis vamzdelis Nr.6 LOR operacijoms",40,"Vnt.",null,null,null,"","",""]
["63.6.1.","Sterilūs, vienkartiniai, supakuoti po 1vnt."]
["63.6.2.","Gaminio sudėtyje nėra latekso"]
["63.6.3.","Į armuoto endotrachėjinio vamzdelio sieneles spiralės forma yra integruotas metalinis laidas"]
["63.6.4.","Vamzdelio distalinėje dalyje, dešinėje yra angelė. Distalinės dalies bei šoninės angelės kraštai yra švelnūs/glotnūs (užapvalinti), netraumuojantys gleivinės"]
["63.6.5.","Proksimaliniame gale yra jungtis; švirkšto prijungimo juosta yra  Luer - Lock tipo; yra užpildymo balionėlis ir kontrolinė manžetė"]
["63.6.6.","Vamzdelio mova (balionas) yra apvalios, pailgos (\"cilindro\") formos, didelio tūrio, žemo spaudimo ir mažo diametro"]
["63.6.7.","Vamzdelio mova pagaminta iš minkštos aukštos kokybės gleivinės netraumuojančios medžiagos"]
["63.6.8.","Vamzdeliai yra pagaminti iš permatomos medžiagos (PVC), elastingi, užrašai ant vamzdelio neišsitrinantys ir ryškūs"]
["63.6.9.","Vartotojui reikalinga informacija yra matomoje vamzdelio dalyje. Sterili pakuotė, ant kurios pateikta informacija apie intubacinį vamzdelį (užrašytas gamintojas, vamzdelio dydis, prekės kodas, galiojimo laikas ir t.t.). kiekvienoje dėžutėje yra naudojimo instrukcija lietuvių kalba. "]
["63.7.","Armuotas intubacinis vamzdelis Nr.6,5 LOR operacijoms",40,"Vnt.",null,null,null,"","",""]
["63.7.1.","Sterilūs, vienkartiniai, supakuoti po 1vnt."]
["63.7.2.","Gaminio sudėtyje nėra latekso"]
["63.7.3.","Į armuoto endotrachėjinio vamzdelio sieneles spiralės forma yra integruotas metalinis laidas"]
["63.7.4.","Vamzdelio distalinėje dalyje, dešinėje yra angelė. Distalinės dalies bei šoninės angelės kraštai yra švelnūs/glotnūs (užapvalinti), netraumuojantys gleivinės"]
["63.7.5.","Proksimaliniame gale yra jungtis; švirkšto prijungimo juosta yra  Luer - Lock tipo; yra užpildymo balionėlis ir kontrolinė manžetė"]
["63.7.6.","Vamzdelio mova (balionas) yra apvalios, pailgos (\"cilindro\") formos, didelio tūrio, žemo spaudimo ir mažo diametro"]
["63.7.7.","Vamzdelio mova pagaminta iš minkštos aukštos kokybės gleivinės netraumuojančios medžiagos"]
["63.7.8.","Vamzdeliai yra pagaminti iš permatomos medžiagos (PVC), elastingi, užrašai ant vamzdelio neišsitrinantys ir ryškūs"]
["63.7.9.","Vartotojui reikalinga informacija yra matomoje vamzdelio dalyje. Sterili pakuotė, ant kurios pateikta informacija apie intubacinį vamzdelį (užrašytas gamintojas, vamzdelio dydis, prekės kodas, galiojimo laikas ir t.t.). kiekvienoje dėžutėje yra naudojimo instrukcija lietuvių kalba. "]
["63.8.","Armuotas intubacinis vamzdelis Nr.7 LOR operacijoms",60,"Vnt.",null,null,null,"","",""]
["63.8.1.","Sterilūs, vienkartiniai, supakuoti po 1vnt."]
["63.8.2.","Gaminio sudėtyje nėra latekso"]
["63.8.3.","Į armuoto endotrachėjinio vamzdelio sieneles spiralės forma yra integruotas metalinis laidas"]
["63.8.4.","Vamzdelio distalinėje dalyje, dešinėje yra angelė. Distalinės dalies bei šoninės angelės kraštai yra švelnūs/glotnūs (užapvalinti), netraumuojantys gleivinės"]
["63.8.5.","Proksimaliniame gale yra jungtis; švirkšto prijungimo juosta yra  Luer - Lock tipo; yra užpildymo balionėlis ir kontrolinė manžetė"]
["63.8.6.","Vamzdelio mova (balionas) yra apvalios, pailgos (\"cilindro\") formos, didelio tūrio, žemo spaudimo ir mažo diametro"]
["63.8.7.","Vamzdelio mova pagaminta iš minkštos aukštos kokybės gleivinės netraumuojančios medžiagos"]
["63.8.8.","Vamzdeliai yra pagaminti iš permatomos medžiagos (PVC), elastingi, užrašai ant vamzdelio neišsitrinantys ir ryškūs"]
["63.8.9.","Vartotojui reikalinga informacija yra matomoje vamzdelio dalyje. Sterili pakuotė, ant kurios pateikta informacija apie intubacinį vamzdelį (užrašytas gamintojas, vamzdelio dydis, prekės kodas, galiojimo laikas ir t.t.). kiekvienoje dėžutėje yra naudojimo instrukcija lietuvių kalba. "]
["63.9.","Armuotas intubacinis vamzdelis Nr.7,5 LOR operacijoms",60,"Vnt.",null,null,null,"","",""]
["63.9.1.","Sterilūs, vienkartiniai, supakuoti po 1vnt."]
["63.9.2.","Gaminio sudėtyje nėra latekso"]
["63.9.3.","Į armuoto endotrachėjinio vamzdelio sieneles spiralės forma yra integruotas metalinis laidas"]
["63.9.4.","Vamzdelio distalinėje dalyje, dešinėje yra angelė. Distalinės dalies bei šoninės angelės kraštai yra švelnūs/glotnūs (užapvalinti), netraumuojantys gleivinės"]
["63.9.5.","Proksimaliniame gale yra jungtis; švirkšto prijungimo juosta yra  Luer - Lock tipo; yra užpildymo balionėlis ir kontrolinė manžetė"]
["63.9.6.","Vamzdelio mova (balionas) yra apvalios, pailgos (\"cilindro\") formos, didelio tūrio, žemo spaudimo ir mažo diametro"]
["63.9.7.","Vamzdelio mova pagaminta iš minkštos aukštos kokybės gleivinės netraumuojančios medžiagos"]
["63.9.8.","Vamzdeliai yra pagaminti iš permatomos medžiagos (PVC), elastingi, užrašai ant vamzdelio neišsitrinantys ir ryškūs"]
["63.9.9.","Vartotojui reikalinga informacija yra matomoje vamzdelio dalyje. Sterili pakuotė, ant kurios pateikta informacija apie intubacinį vamzdelį (užrašytas gamintojas, vamzdelio dydis, prekės kodas, galiojimo laikas ir t.t.). kiekvienoje dėžutėje yra naudojimo instrukcija lietuvių kalba. "]
["63.10.","Armuotas intubacinis vamzdelis Nr.8 LOR operacijoms",40,"Vnt.",null,null,null,"","",""]
["63.10.1.","Sterilūs, vienkartiniai, supakuoti po 1vnt."]
["63.10.2.","Gaminio sudėtyje nėra latekso"]
["63.10.3.","Į armuoto endotrachėjinio vamzdelio sieneles spiralės forma yra integruotas metalinis laidas"]
["63.10.4.","Vamzdelio distalinėje dalyje, dešinėje yra angelė. Distalinės dalies bei šoninės angelės kraštai yra švelnūs/glotnūs (užapvalinti), netraumuojantys gleivinės"]
["63.10.5.","Proksimaliniame gale yra jungtis; švirkšto prijungimo juosta yra  Luer - Lock tipo; yra užpildymo balionėlis ir kontrolinė manžetė"]
["63.10.6.","Vamzdelio mova (balionas) yra apvalios, pailgos (\"cilindro\") formos, didelio tūrio, žemo spaudimo ir mažo diametro"]
["63.10.7.","Vamzdelio mova pagaminta iš minkštos aukštos kokybės gleivinės netraumuojančios medžiagos"]
["63.10.8.","Vamzdeliai yra pagaminti iš permatomos medžiagos (PVC), elastingi, užrašai ant vamzdelio neišsitrinantys ir ryškūs"]
["63.10.9.","Vartotojui reikalinga informacija yra matomoje vamzdelio dalyje. Sterili pakuotė, ant kurios pateikta informacija apie intubacinį vamzdelį (užrašytas gamintojas, vamzdelio dydis, prekės kodas, galiojimo laikas ir t.t.). kiekvienoje dėžutėje yra naudojimo instrukcija lietuvių kalba. "]
[null,"","","","Suma be PVM",null,"","","","","",""]
[null,"","","","PVM suma",null,"","","","","",""]
[null,"","","","Suma su PVM",null,"","","","","",""]
[]
["64.","Tulžies latakų stentai"]
["64.1.","Tulžies latakų stentas 10 Fr.",10,"Vnt.",43,{"$f":"E320*10","v":430},"Percuflex Amsterdam, gam.Boston Scientific M00533660","","",""]
["64.1.1.","50mm ilgio",null,null,null,null,null,"50 mm ilgio"]
["64.2.","Tulžies latakų stentas 10 Fr.",10,"Vnt.",43,{"$f":"E322*10","v":430},"Percuflex Amsterdam, gam.Boston Scientific M00533670","","",""]
["64.2.1.","70mm ilgio",null,null,null,null,null,"70 mm ilgio"]
["64.3.","Tulžies latakų stentas 10 Fr.",10,"Vnt.",43,{"$f":"E324*10","v":430},"Percuflex Amsterdam, gam.Boston Scientific M00533700","","",""]
["64.3.1.","150mm ilgio",null,null,null,null,null,"150 mm ilgio"]
[null,"","","","Suma be PVM",{"$f":"F324+F322+F320","v":1290},"","","","","",""]
[null,"","","","PVM suma",{"$f":"F328-F326","v":64.5},"","","","","",""]
[null,"","","","Suma su PVM",{"$f":"F326*1.05","v":1354.5},"","","","","",""]
[]
["65.","Pankreatitiniai stentai"]
["65.1.","Pankreatitinis stentas 7Fr.",20,"Vnt.",46.68,{"$f":"E331*20","v":933.6},"Advanix pancreatic stent, gam.Boston Scientific M00537220 arba M00536480","","",""]
["65.1.1.","3cm",null,null,null,null,null,"3 cm"]
["65.2.","Pankreatitinis stentas 7Fr.",20,"Vnt.",46.68,{"$f":"E333*20","v":933.6},"Advanix pancreatic stent, gam.Boston Scientific M00537240 arba M00536500","","",""]
["65.2.1.","5cm",null,null,null,null,null,"5 cm"]
[null,"","","","Suma be PVM",{"$f":"F333+F331","v":1867.2},"","","","","",""]
[null,"","","","PVM suma",{"$f":"F337-F335","v":93.360000000000127},"","","","","",""]
[null,"","","","Suma su PVM",{"$f":"F335*1.05","v":1960.5600000000002},"","","","","",""]
[]
["66.","Stentavimo sistema"]
["66.1.","Stentavimo sistema 7Fr.",10,"Vnt.",120,{"$f":"E340*10","v":1200},"NaviFlex RX pancreatic stent delivery system, gam. Boston Scientific, M00535060","","",""]
["66.2.","Stentavimo sistema 10Fr.",10,"Vnt.",120,{"$f":"E341*10","v":1200},"NaviFlex RX pancreatic stent delivery system, gam. Boston Scientific, M00535080","","",""]
[null,"","","","Suma be PVM",{"$f":"F341+F340","v":2400},"","","","","",""]
[null,"","","","PVM suma",{"$f":"F344-F342","v":120},"","","","","",""]
[null,"","","","Suma su PVM",{"$f":"F342*1.05","v":2520},"","","","","",""]
[]
["67.","Akmenų šalinimo krepšelis"]
["67.1.","Akmenų šalinimo krepšelis",10,"Vnt.",156,{"$f":"E347*10","v":1560},"Trapezoid RX, gam.Boston Scientific M00510890","","",""]
["67.1.1.","Vienkartinio naudojimo",null,null,null,null,null,"vienkartinis"]
["67.1.2.","4 vielų",null,null,null,null,null,"4 vielų"]
["67.1.3.","Darbinis kanalas 3,2mm",null,null,null,null,null,"darbinis kanals 3,2 mm"]
["67.1.4.","Darbinis ilgis 1900-2100mm",null,null,null,null,null,"ilgis 2000mm"]
["67.1.5.","Krepšelio Ø 30-40mm ",null,null,null,null,null,"krepšelio diametras 3,0 mm"]
[null,"","","","Suma be PVM",1560,"","","","","",""]
[null,"","","","PVM suma",{"$f":"F355-F353","v":78},"","","","","",""]
[null,"","","","Suma su PVM",{"$f":"F353*1.05","v":1638},"","","","","",""]
[]
["68.","Akmenų šalinimo balioninis kateteris"]
["68.1.","Akmenų šalinimo balioninis kateteris",10,"Vnt.",111.5,{"$f":"E358*10","v":1115},"Extractor Pro XL retrieval balloon catheter distal or proximal injection, gam.Boston Scientific, M00547100-M00547150","","",""]
["68.1.1.","Vienkartinio naudojimo, trikanalis",null,null,null,null,null,"vienkartinis, trikanalis"]
["68.1.2.","Darbinis kanalas 3,2mm",null,null,null,null,null,"darbinis kanalas 3,2 mm"]
["68.1.3.","Darbinis ilgis 1900-2100mm",null,null,null,null,null,"ilgis 200 cm"]
[null,"","","","Suma be PVM",1115,"","","","","",""]
[null,"","","","PVM suma",{"$f":"F364-F362","v":55.75},"","","","","",""]
[null,"","","","Suma su PVM",{"$f":"F362*1.05","v":1170.75},"","","","","",""]
[]
["69.","Pravedėjas tulžies latakų stentavimo sistemai"]
["69.1.","Pravedėjas tulžies latakų stentavimo sistemai",10,"Vnt.",43,{"$f":"E367*10","v":430},"Percuflex Amsterdam Introducer kit, gam. Boston Scientific, M00533910 arba M00533920","","",""]
["69.1.1.","Vienkartinio naudojimo",null,null,null,null,null,"vienkartinis"]
["69.1.2.","Darbinis kanalas 3,2mm",null,null,null,null,null,"darbinis kanlas 3,2 mm"]
["69.1.3.","Vielos ilgis 4300-4500mm",null,null,null,null,null,"ilgis 4500 mm"]
[null,"","","","Suma be PVM",430,"","","","","",""]
[null,"","","","PVM suma",{"$f":"F373-F371","v":21.5},"","","","","",""]
[null,"","","","Suma su PVM",{"$f":"F371*1.05","v":451.5},"","","","","",""]
[]
["70.","Hydrofilinės stygos šlapimo takų stentavimui"]
["70.1.","Hydrofilinės stygos šlapimo takų stentavimui",20,"Vnt.",6.3,{"$f":"E376*20","v":126},"ZIPwire hydrophilic guidewire, gam.Boston Scientific, M006630205B-M006630225B","","",""]
["70.1.1.","Vienkartinės, minkštos",null,null,null,null,null,"vienkartines, minkštos"]
[null,"","","","Suma be PVM",126,"","","","","",""]
[null,"","","","PVM suma",{"$f":"F380-F378","v":6.3000000000000114},"","","","","",""]
[null,"","","","Suma su PVM",{"$f":"F378*1.05","v":132.30000000000001},"","","","","",""]
[]
["71.","Klipai kraujavimo stabdymui"]
["71.1.","Klipai kraujavimo stabdymui",1000,"Vnt.",null,null,null,"","",""]
["71.1.1.","Vienkartiniai, sterilūs"]
["71.1.2.","Pritaikyti daugkartinio naudojimo klipavimo sistemai „OLYMPUS“"]
["71.1.3.","Atsidarymo kampas 135 "]
["71.1.4.","Ilgis 7,5mm"]
[null,"","","","Suma be PVM",null,"","","","","",""]
[null,"","","","PVM suma",null,"","","","","",""]
[null,"","","","Suma su PVM",null,"","","","","",""]
[]
["72.","Endoskopinė ligavimo kilpa"]
["72.1.","Endoskopinė ligavimo kilpa",20,"Vnt.",null,null,null,"","",""]
["72.1.1.","Vienkartinė, sterili"]
["72.1.2.","Su integruota rankena. Rankenos ilgis 2200-2300mm"]
["72.1.3.","Kilpos skersmuo 30mm"]
["72.1.4.","Įleidžiamosios dalies diametras 2,6mm"]
["72.1.5.","Tinkanti 2,8mm skersmens endoskopo darbiniam kanalui"]
[null,"","","","Suma be PVM",null,"","","","","",""]
[null,"","","","PVM suma",null,"","","","","",""]
[null,"","","","Suma su PVM",null,"","","","","",""]
[]
["73.","Stemplės venų ligavimo kilpa"]
["73.1.","Stemplės venų ligavimo kilpa",30,"Vnt.",108.41,{"$f":"E404*30","v":3252.2999999999997},"Speedband Superview Super7 multiple band ligator, gam.Boston Scientific M00542253","","",""]
["73.1.1.","Varikozinių mazgų ligavimo kilpos plotis 12mm",null,null,null,null,null,"kilpos plotis 12 mm"]
["73.1.2.","Ilgis 1560-1600mm",null,null,null,null,null,"ilgis 1600 mm"]
["73.1.3.","Darbinio kanalo pločiui 2,8mm",null,null,null,null,null,"darbinio kanalo plotis 2,8 mm"]
["73.1.4.","Rankena",null,null,null,null,null,"rankena"]
[null,"","","","Suma be PVM",3252.3,"","","","","",""]
[null,"","","","PVM suma",{"$f":"F411-F409","v":162.61500000000024},"","","","","",""]
[null,"","","","Suma su PVM",{"$f":"F409*1.05","v":3414.9150000000004},"","","","","",""]
[]
["74.","Specialūs endoskopo antgaliai"]
["74.1.","Specialūs endoskopo antgaliai",20,"Vnt.",null,null,null,"","",""]
["74.1.1.","Antgaliai tinkantys Olympus endoskopui, stemplės venų ligavimui"]
[null,"","","","Suma be PVM",null,"","","","","",""]
[null,"","","","PVM suma",null,"","","","","",""]
[null,"","","","Suma su PVM",null,"","","","","",""]
[]
["75.","Biopsinių adatų nukreipėjas endorektaliniam davikliui"]
["75.1.","Biopsinių adatų nukreipėjas endorektaliniam davikliui",400,"Vnt.",null,null,null,"","",""]
["75.1.1.","Sterilus, pakuotėse po 1 vn.t"]
["75.1.2.","Skirtas audinių biopsijai atlikti, pagamintas iš plastiko"]
["75.1.3.","17cm +/- 0,5 cm ilgio"]
["75.1.4.","Darbinio kanalo spindis tinkantis 16G biopsinei adatai"]
["75.1.5.","Kartu komplektuojama lateksinė daviklio apsauga ir fiksuojamoji juostelė"]
["75.1.6.","Philips HD 15, daviklio BP10-5ec.\n\n"]
[null,"","","","Suma be PVM",null,"","","","","",""]
[null,"","","","PVM suma",null,"","","","","",""]
[null,"","","","Suma su PVM",null,"","","","","",""]
[]
["76.","Šoninis papiliatominis peilis"]
["76.1.","Šoninis papiliatominis peilis",20,"Vnt.",111,{"$f":"E433*20","v":2220},"Ultratome XL Triple-lumen sphincterotome, gam.Boston Scientific, M00535900 ir M00535920","","",""]
["76.1.1.","Darbinis kanalas 3,2mm",null,null,null,null,null,"darbinis kanalas 3,2 mm"]
["76.1.2.","Darbinis ilgis 1900-2100mm",null,null,null,null,null,"darbinis ilgis 2000 mm"]
["76.1.3.","Distalinio galiuko ilgis 3mm",null,null,null,null,null,"distalinio galiuko ilgis 3 mm"]
[null,"","","","Suma be PVM",2220,"","","","","",""]
[null,"","","","PVM suma",{"$f":"F439-F437","v":111},"","","","","",""]
[null,"","","","Suma su PVM",{"$f":"F437*1.05","v":2331},"","","","","",""]
[]
["77.","Skysčių padavimo sistema"]
["77.1.","Skysčių padavimo sistema",30,"Vnt.",null,null,null,"","",""]
["77.1.1.","Skirta hysteroskopijoms atlikti"]
["77.1.2.","Silikoninė, su slėginiu davikliu "]
["77.1.3.","Tinkama naudoti su ligoninės turima  „OLYMPUS“ firmos hysteroskopine pompa „HysteroFlow “"]
[null,"","","","Suma be PVM",null,"","","","","",""]
[null,"","","","PVM suma",null,"","","","","",""]
[null,"","","","Suma su PVM",null,"","","","","",""]
[]
["78.","Vienkartinės polipektominės kilpos besikeisiančio diametro"]
["78.1.","Vienkartinės polipektominės kilpos besikeisiančio diametro",100,"Vnt.",null,null,null,"","",""]
["78.1.1.","Kilpos, besikeičiančio diametro darbiniam kanalui 2.8mm"]
["78.1.2.","Elektrochirurginis prietaisas, skirtas suimti ir pjauti virškinamojo trakto audinius endoskopijos procedūros metu"]
["78.1.3.","Reguliuojant kilpos poziciją šarvo atžvilgiu turi būti galimybė keisti kilpos formą (ovali-šešiakampė-“deimanto“) ir dydį (plotis nuo 6 mm iki 30 mm, ilgis nuo 15 iki 55 mm ). "]
["78.1.4.","Kilpa turi būti pagaminta iš standžios, plokščios vielos"]
["78.1.5.","Šarvo diametras 2,4 mm, ilgis 230 cm ± 5 cm"]
[null,"","","","Suma be PVM",null,"","","","","",""]
[null,"","","","PVM suma",null,"","","","","",""]
[null,"","","","Suma su PVM",null,"","","","","",""]
[]
["79.","Multifunkcinis endoskopinis įrankis"]
["79.1.","Multifunkcinis endoskopinis įrankis",50,"Vnt.",null,null,null,"","",""]
["79.1.1.","Įrankį turi sudaryti polipektominė kilpa monopoliarinei elektrokautetrizacijai ir integruota adata, skirta atlikti dvi procedūras nekeičiant endoskopinių įrankių"]
["79.1.2.","Polipektominė kilpa turi būti dviejų modifikacijų: šešiakampė ir ovali"]
["79.1.3.","Polipektominės kilpos dydis turi būti 35x40mm  adatos dydžiai turi būti 25G ir 23G"]
["79.1.4.","Kateterio gale turi būti adatos apsauga nuo intraprocedūrinio netyčinio adatos įsmigimo ir/ar endoskopo pažeidimo"]
["79.1.5.","Su Luer Lock rankena"]
["79.1.6.","Įrankio kateterio diametras turi būti 3mm, ilgis 230cm ± 5 cm"]
["79.1.7.","Sterilus, vienkartinio naudojimo"]
[null,"","","","Suma be PVM",null,"","","","","",""]
[null,"","","","PVM suma",null,"","","","","",""]
[null,"","","","Suma su PVM",null,"","","","","",""]
[]
["80.","Polipektominė šalto pjovimo kilpa"]
["80.1.","Polipektominė šalto pjovimo kilpa",50,"Vnt.",13,{"$f":"E475*50","v":650},"Captivator, gam.Boston Scientific ","","",""]
["80.1.1.","Polipektominė kilpa, skirta tik šaltam diminutyvinių polipų šalinimui",null,null,null,null,null,"skirta šaltam diminutyvinių polipų šalinimui"]
["80.1.2.","Kilpa išformuota patogesniam polipų užgriebimui",null,null,null,null,null,"kilpa išformuota patogesniam polipų užgriebimui"]
["80.1.3.","Kilpos plotis ne daugiau 9 mm ",null,null,null,null,null,"kilpos plotis 9 mm"]
["80.1.4.","Kilpos vielos diametras ne didesnis negu 0.30 mm",null,null,null,null,null,"kilpos vielos diametras 0,30 mm"]
["80.1.5.","Šarvo diametras 2,4 mm",null,null,null,null,null,"šarvo diametras 2,4 mm"]
["80.1.6.","Vienkartinio naudojimo",null,null,null,null,null,"vienkartinė"]
[null,"","","","Suma be PVM",650,"","","","","",""]
[null,"","","","PVM suma",{"$f":"F484-F482","v":32.5},"","","","","",""]
[null,"","","","Suma su PVM",{"$f":"F482*1.05","v":682.5},"","","","","",""]
[]
["81.","Endoskopinis pjovimo įrankis"]
["81.1.","Endoskopinis pjovimo įrankis",50,"Vnt.",null,null,null,"","",""]
["81.1.1.","Monofilamentinės standžios, plokščios, persuktos vielos pjovimo įrankis"]
["81.1.2.","Skirtas labai plokščių polipų šalinimui"]
["81.1.3.","Kilpos dydis 14x27 mm"]
[null,"","","","Suma be PVM",null,"","","","","",""]
[null,"","","","PVM suma",null,"","","","","",""]
[null,"","","","Suma su PVM",null,"","","","","",""]
[]
["82.","Klipavimo komplektai"]
["82.1.","Klipavimo komplektai",100,"Vnt.",91.35,{"$f":"E496*100","v":9135},"Resolution 360 clip, gam.Boston Scientific, M00521230-M00521233","","",""]
["82.1.1.","Priemonė hemostazei – sukamieji 360 laipsnių, vienkartiniai su pakartotino atidarymo galimybe, pakartotinų atidarymų apribojimas ne mažiau kaip 5 kartai",null,null,null,null,null,"sukasi 360 laipsnių, vienkartiniai, su pakartotino atidarymo galimybe, ne mažiau kaip 5 kartai"]
["82.1.2.","Maksimalus įleidžiamosios dalies skersmuo (mm) ne daugiau kaip 2,75mm",null,null,null,null,null,"maksimalus įleidžiamos dalies skersmuo 2,75 mm"]
["82.1.3.","Darbinis ilgis 2200-2300 mm",null,null,null,null,null,"darbinis ilgis 2350 mm"]
["82.1.4.","Atidarymo plotis 11 mm",null,null,null,null,null,"atidarymo plotis 11 mm"]
[null,"","","","Suma be PVM",9135,"","","","","",""]
[null,"","","","PVM suma",{"$f":"F503-F501","v":456.75},"","","","","",""]
[null,"","","","Suma su PVM",{"$f":"F501*1.05","v":9591.75},"","","","","",""]
[]
["83.","Biopsinės žnyplės"]
["83.1.","Biopsinės žnyplės",50,"Vnt.",9.48,{"$f":"E506*50","v":474},"Radial Jaw 4 hot, gam. Boston Scientific, M00515031-M00515033","","",""]
["83.1.1.","Vienkartinės, karštos",null,null,null,null,null,"vienkartinės, karštos"]
["83.1.2.","Kaušeliai - ovalinės aligatoriaus nasrų formos, perforuoti",null,null,null,null,null,"kaušeliai ovaliniai, aligatoriaus tipo, perforuoti"]
["83.1.3.","Kaušelis pasukamas - šoninei biopsijai paimti",null,null,null,null,null,"kaušelis pasisuka"]
["83.1.4.","Įvedamoji dalis: skersmuo 2,45 mm, ilgis 2200 - 2300 mm.",null,null,null,null,null,"skersmuo 2,45 mm, ilgis 2400 mm"]
[null,"","","","Suma be PVM",474,"","","","","",""]
[null,"","","","PVM suma",{"$f":"F513-F511","v":23.700000000000045},"","","","","",""]
[null,"","","","Suma su PVM",{"$f":"F511*1.05","v":497.70000000000005},"","","","","",""]
[]
["84.","Endoskopinis stemplės-pyliorinis-biliarinis diliatacinis balionas"]
["84.1.","Endoskopinis stemplės-pyliorinis-biliarinis diliatacinis balionas",10,"Vnt.",150,{"$f":"E516*10","v":1500},"CRE PRO balloon dilators, gam.Boston Scientific, M00558700","","",""]
["84.1.1.","Vienkartinis sterilus",null,null,null,null,null,"vienkartinis, sterilus"]
["84.1.2.","Baliono ilgis 5.5cm ±3mm, skersmuo 15-16.5-18mm",null,null,null,null,null,"baliono ilgis 5,5 cm, skersmuo 15-16,5-18 mm"]
["84.1.3.","Ilgis  240cm ±5cm, tinkantis darbiniam kanalui 2.8mm",null,null,null,null,null,"ilgis 240 cm, tinka darbiniam kanalui 2,8 mm"]
[null,"","","","Suma be PVM",1500,"","","","","",""]
[null,"","","","PVM suma",{"$f":"F522-F520","v":75},"","","","","",""]
[null,"","","","Suma su PVM",{"$f":"F520*1.05","v":1575},"","","","","",""]
[]
["85.","Endoskopinis kanalo ištraukimo balionas"]
["85.1.","Endoskopinis kanalo ištraukimo balionas",30,"Vnt.",null,null,null,"","",""]
["85.1.1.","Darbinis ilgis 1900mm  ± 5mm, vidinio kanalo skersmens diametras 2,8mm, įleidžiamosios dalies skersmens diametras 2,7mm"]
["85.1.2.","Skersmuo po pripūtimo 8,5/11,5/15,5mm diametro"]
["85.1.3.","Vienkartinio naudojimo, sterilus"]
[null,"","","","Suma be PVM",null,"","","","","",""]
[null,"","","","PVM suma",null,"","","","","",""]
[null,"","","","Suma su PVM",null,"","","","","",""]
[]
["86.","Endoskopinis gleivinės rezekcijos rinkinys (EMR-KIT)"]
["86.1.","Endoskopinis gleivinės rezekcijos rinkinys (EMR-KIT)",20,"Vnt.",null,null,null,"","",""]
["86.1.1.","Rinkinį sudaro: apipurškimo kateteris, injekcinė adata, elektrochirurginė kilpa (ilgis 165 cm +/- 5cm, atsidarymo diametras 25 mm, plonos 0,3 mm vielos, pusmėnulio formos)"]
["86.1.2.","Endoskopo distalinės dalies antgalis su borteliu"]
[null,"","","","Suma be PVM",null,"","","","","",""]
[null,"","","","PVM suma",null,"","","","","",""]
[null,"","","","Suma su PVM",null,"","","","","",""]
[]
["87.","Endoskopo antgaliai su šonine skylute"]
["87.1.","Endoskopo antgaliai su šonine skylute",5,"Komplektai",null,null,null,"","",""]
["87.1.1.","Vienkartiniai"]
["87.1.2.","Uždėto antgalio ilgis 4 mm nuo endoskopo distalinio galo"]
["87.1.3.","Antgalio diametras 11,4 mm"]
["87.1.4.","Komplekte 10 vnt. "]
[null,"","","","Suma be PVM",null,"","","","","",""]
[null,"","","","PVM suma",null,"","","","","",""]
[null,"","","","Suma su PVM",null,"","","","","",""]
[]
["88.","Tiesioginio siurbimo ir plovimo prietaisas endoskopui"]
["88.1.","Tiesioginio siurbimo ir plovimo prietaisas endoskopui",50,"Vnt.",null,null,null,"","",""]
["88.1.1.","Prietaisas skirtas virškinamojo trakto tiesioginiam intensyviam siurbimui ir plovimui endoskopijos procedūros metu per endoskopo biopsijos/siurbimo kanalą"]
["88.1.2.","Prietaiso dėka turi būti įmanoma greitai įsiurbti didelį tūrį sunkai pašalinamų, klampių darinių, audinių (pvz. krešuliai, naviko masė), plovimui naudoti didelį kiekį skysčių"]
["88.1.3.","Naudojamo prietaiso veikimo laukas – priešais kontrolinę endoskopo galvutę"]
["88.1.4.","Vienkartinio naudojimo"]
["88.1.5.","Pagamintas iš plastiko, be latekso"]
[null,"","","","Suma be PVM",null,"","","","","",""]
[null,"","","","PVM suma",null,"","","","","",""]
[null,"","","","Suma su PVM",null,"","","","","",""]
[]
["89.","Endoskopinė kabučių sistema"]
["89.1.","Endoskopinė kabučių sistema",15,"Vnt.",null,null,null,"","",""]
["89.1.1.","OVESCO OTSC sistemos rinkinys, skirtas audinių vientisumo atstatymui virškinamajame trakte"]
[null,"","","","Suma be PVM",null,"","","","","",""]
[null,"","","","PVM suma",null,"","","","","",""]
[null,"","","","Suma su PVM",null,"","","","","",""]
[]
["90.","Polipų gaudyklė"]
["90.1.","Polipų gaudyklė",100,"Vnt.",null,null,null,"","",""]
["90.1.1.","Vienkartinio naudojimo, skirta Olympus sistemos pompai"]
[null,"","","","Suma be PVM",null,"","","","","",""]
[null,"","","","PVM suma",null,"","","","","",""]
[null,"","","","Suma su PVM",null,"","","","","",""]
[]
["91.","Spirometro kandiklis"]
["91.1.","Spirometro kandiklis",2400,"Vnt.",null,null,null,"","",""]
["91.1.1.","Turi būti pritaikytas visoms amžiaus grupėms"]
["91.1.2.","Forma – cilindrinė. Ilgis – 140mm± 5mm, išorinis skersmuo – 21mm, vidinis skersmuo – 19mm, sienelės storis – 1mm"]
["91.1.3.","Bakterijos filtro membrana turi būti sumontuota viduje"]
["91.1.4.","Medžiaga turi būti pagaminta iš polietileno (PE) arba lygiavertės medžiagos"]
["91.1.5.","Vienkartinis, sterilus"]
["91.1.6.","Tinkamas naudoti su ligoninėje turimais spirometrais Easy On PC"]
[null,"","","","Suma be PVM",null,"","","","","",""]
[null,"","","","PVM suma",null,"","","","","",""]
[null,"","","","Suma su PVM",null,"","","","","",""]
[]
["92.","Vienkartiniai kandikliai spirometrijai"]
["92.1.","Vienkartiniai kandikliai spirometrijai",2000,"Vnt.",null,null,null,"","",""]
["92.1.1.","26mm diametro"]
["92.1.2.","Kvėpavimo aparatui SporoMed 250"]
[null,"","","","Suma be PVM",null,"","","","","",""]
[null,"","","","PVM suma",null,"","","","","",""]
[null,"","","","Suma su PVM",null,"","","","","",""]
[]
["93.","Pravedėjas lenktu galu – Bužas (Bougie)"]
["93.1.","Pravedėjas lenktu galu – Bužas (Bougie)",30,"Vnt.",null,null,null,"","",""]
["93.1.1.","Sterilūs. Vienkartiniai. Be latekso. Supakuoti po 1 vnt"]
["93.1.2.","Turi atraumatinį galą"]
["93.1.3.","Skirtas sudėtingai intubacijai atlikti"]
["93.1.4.","Tinka standartiniams endotrachėjiniams vamzdeliams"]
["93.1.5."," Gaminio dydžiai: 15 FR diametras 5,0mm, ilgis 700mm ± 5mm \n"]
["93.2.","Pravedėjas lenktu galu – Bužas (Bougie)",30,"Vnt.",null,null,null,"","",""]
["93.2.1.","Sterilūs. Vienkartiniai. Be latekso. Supakuoti po 1 vnt"]
["93.2.2.","Turi atraumatinį galą"]
["93.2.3.","Skirtas sudėtingai intubacijai atlikti"]
["93.2.4.","Tinka standartiniams endotrachėjiniams vamzdeliams"]
["93.2.5."," Gaminio dydžiai: 10FR diametras 3,3mm, ilgis 700mm ± 5mm"]
[null,"","","","Suma be PVM",null,"","","","","",""]
[null,"","","","PVM suma",null,"","","","","",""]
[null,"","","","Suma su PVM",null,"","","","","",""]
[]
["94.","Apsauginiai akiniai"]
["94.1.","Apsauginiai akiniai",5,"Vnt.",null,null,null,"","",""]
["94.1.1.","Naudojami prie lazerio FOX"]
["94.1.2.","Spindulio galingumas 800 – 1064 NM"]
["94.1.3.","Filtro spalva žalia"]
[null,"","","","Suma be PVM",null,"","","","","",""]
[null,"","","","PVM suma",null,"","","","","",""]
[null,"","","","Suma su PVM",null,"","","","","",""]
[]
["95.","Fototerapijos akiniai"]
["95.1.","Fototerapijos akiniai",140,"Vnt.",null,null,null,"","",""]
["95.1.1.","Suaugusiems"]
["95.1.2.","Naudojami fototerapijos metu apsaugoti paciento akis nuo UV spindulių"]
["95.1.3.","Plastikiniai, tamsinti, tamprus fiksacijos raištis, reguliuojamas atstumas nosies srityje"]
[null,"","","","Suma be PVM",null,"","","","","",""]
[null,"","","","PVM suma",null,"","","","","",""]
[null,"","","","Suma su PVM",null,"","","","","",""]
[]
["96.","Rinkinys antgalių audiometrui - timponometrui"]
["96.1.","Rinkinys antgalių audiometrui - timponometrui",20,"Rinkinys",null,null,null,"","",""]
["96.1.1.","Vienkartiniai antgaliai, tinkantys audiometro – timponometro aparatui, modelis AA 222 Audio Traveller, (LOR kabinetui, naudojami pacientui į ausį), timpanogramoms atlikti"]
[null,"","","","Suma be PVM",null,"","","","","",""]
[null,"","","","PVM suma",null,"","","","","",""]
[null,"","","","Suma su PVM",null,"","","","","",""]
[]
["97.","Pincetai su dantukais"]
["97.1.","Pincetai su dantukais",6100,"Vnt.",null,null,null,"","",""]
["97.1.1.","Sterilūs"]
["97.1.2.","Plastikiniai"]
["97.1.3.","Ilgis 15cm +/- 0,5cm"]
[null,"","","","Suma be PVM",null,"","","","","",""]
[null,"","","","PVM suma",null,"","","","","",""]
[null,"","","","Suma su PVM",null,"","","","","",""]
[]
["98.","Apyrankė paciento identifikavimui"]
["98.1.","Apyrankė paciento identifikavimui",170,"Vnt.",null,null,null,"","",""]
["98.1.1.","Vienkartinė apyrankė, segama ant suaugusio paciento riešo"]
["98.1.2.","Lengvai pritaikoma pagal riešo apimtį"]
["98.1.3.","Turi „langelį“, kuriame galima užrašyti paciento vardą pavardę"]
["98.1.4.","Neperšlampama"]
[null,"","","","Suma be PVM",null,"","","","","",""]
[null,"","","","PVM suma",null,"","","","","",""]
[null,"","","","Suma su PVM",null,"","","","","",""]
[]
["99.","Testas H.Pylori"]
["99.1.","Testas H.Pylori",100,"Vnt.",null,null,null,"","",""]
["99.1.1.","Indikacinė tabletė, patalpinta stačiakampiame kartoniniame pagrinde ir hermetiškai apsaugota skaidria plėvele"]
["99.1.2.","Skirta helicobacter pylori bakterijai nustatyti iš skrandžio bioptato"]
[null,"","","","Suma be PVM",null,"","","","","",""]
[null,"","","","PVM suma",null,"","","","","",""]
[null,"","","","Suma su PVM",null,"","","","","",""]
[]
["100.","Širmerio testo juostelės"]
["100.1.","Širmerio testo juostelės",200,"Vnt.",null,null,null,"","",""]
["100.1.1.","Sterili, individualiame įpakavime, vienkartinė popierinė juostelė"]
["100.1.2.","5mm x 35mm dydžio"]
["100.1.3.","Juostelių gradacija nuo 0 – 35mm"]
[null,"","","","Suma be PVM",null,"","","","","",""]
[null,"","","","PVM suma",null,"","","","","",""]
[null,"","","","Suma su PVM",null,"","","","","",""]

{"sheet":"Subtiekėjai","index":1,"n_rows":100,"n_cols":9,"rows_kept":100,"cut":false,"hidden":false,"merged":[[4,0,4,1],[4,2,4,4],[4,5,4,7],[4,8,4,9],[1,0,1,9],[3,0,3,1],[3,2,3,4],[3,5,3,7],[3,8,3,9],[5,0,5,1],[5,2,5,4],[5,5,5,7],[5,8,5,9],[6,0,6,1],[6,2,6,4],[6,5,6,7],[6,8,6,9],[10,0,10,9],[12,0,12,9],[14,0,14,9],[16,1,16,6],[16,7,16,9],[7,0,7,1],[7,2,7,4],[7,5,7,7],[7,8,7,9],[8,0,8,1],[8,2,8,4],[8,5,8,7],[8,8,8,9],[38,0,38,9],[21,1,21,6],[21,7,21,9],[24,0,24,3],[24,4,24,9],[25,0,25,9],[26,0,26,9],[28,0,28,9],[32,0,32,3],[32,4,32,9],[35,0,35,3],[35,4,35,9]]}
[]
["Sutarties vykdymui numatome pasitelkti šiuos subtiekėjus / subteikėjus / subrangovus (įrašyti visus subtiekėjus / subteikėjus / subrangovus nepriklausomai nuo tiekiamų prekių/ teikiamų paslaugų/ atliekamų darbų vertės):"]
[]
["Subtiekėjo / subteikėjo / subrangovo (-ų) pavadinimas (-ai)",null,"Adresas",null,null,"Trumpas aprašymas",null,null,"Procentas nuo pasiūlymo kainos be PVM"]
[]
[]
[]
[]
[]
[]
["Jeigu pirkimo dokumentų 18 punkte numatytas subtiekimo / subteikimo / subrangos apribojimas:\nMes patvirtiname, kad subtiekėjams / subteikėjams / subrangovams (tiekėjams, kuriuos pasamdysime dalies sutartyje numatytų prekių tiekimui /paslaugų teikimui / darbų atlikimui) perduodamų tiekti prekių / teikti paslaugų/ atlikti darbų dalis neviršys       proc. pasiūlymo kainos be PVM."]
[]
["Mes patvirtiname, kad esame / nesame (nereikalingą išbraukti) laikomi asocijuotais (susijusiais) su Perkančiąja organizacija pagal Lietuvos Respublikoje galiojančių teisės aktų (Lietuvos Respublikos pelno mokesčio, Lietuvos Respublikos pridėtinės vertės mokesčio ir Lietuvos Respublikos gyventojų pajamų mokesčio įstatymų) nuostatas. "]
[]
["Kartu su pasiūlymu pateikiami šie dokumentai:"]
[]
["Eil.Nr.","\"Pateiktų skaitmeninių dokumentų (ar jų kopijų) pavadinimas\n(pasiūlymą sudarančių konfidencialių dokumentų pavadinimai pažymėti prierašu KONFIDENCIALU)\"",null,null,null,null,null,"Prisegtos bylos (failo) pavadinimas "]
[null,null,"Igaliojimas pasirasyti dokumentus",null,null,null,null,"Igaliojimas pasirasyti dokumentus"]
[null,null,"Gamintoju igaliojimai",null,null,null,null,"Gamintoju igaliojimai"]
[null,null,"Sertifikatai",null,null,null,null,"Sertifikatai"]
[null,null,"Katalogai",null,null,null,null,"Katalogai"]
[]
[]
[]
["Pasiūlymo galiojimo užtikrinimui pateikiame :"]
[]
["(Nurodyti užtikrinimo būdą, dydį, dokumentus)"]
[]
["\nPasiūlymas galioja iki termino, nustatyto pirkimo dokumentuose.\n\nPasiūlymo neatskiriama dalis yra (rašoma, jeigu buvo reikalauta prie pasiūlymo pridėti atitinkamą dokumentą)"]
[]
[]
[]
["Tiekėjo arba jo įgalioto asmens pareigų pavadinimas",null,null,null,"Sandra Čaikė"]
[]
[]
["Pasirašančio asmens vardas ir pavardė",null,null,null,"Sandra Čaikė"]
[]
[]
["**kadangi visas pasiūlymas pasirašomas saugiu elektroniniu parašu, šio dokumento atskirai pasirašyti neprivaloma."]
[]
[]
[]
[]
[]
[]
[]
[]
[]
[]
[]
[]
[]
[]
[]
[]
[]
[]
[]
[]
[]
[]
[]
[]
[]
[]
[]
[]
[]
[]
[]
[]
[]
[]
[]
[]
[]
[]
[]
[]
[]
[]
[]
[]
[]
[]
[]
[]
[]
[]
[]
[]
[]
[]
[]
[]
[]
[]
[]
[]
["563-2"]